Cogmind - Beta 10.1 @@@ ROGUE MODE // 2020.09.29 @ 19:06:54 Player: Plexion Result: Destroyed by as-69806 with Assembled Blade Performance ------------- Evolutions (0) 0 Regions Visited (2) 400 Robots Destroyed (12) 60 Value Destroyed (256) 256 Prototype IDs (0) 0 Alien Tech Used (0) 0 Bonus (0) 0 TOTAL SCORE: 716 Bonus ------- None Cogmind --------- Core Integrity 0/250 Matter 300/300 Energy 125/125 System Corruption 0% Temperature Cool (0) Movement Treading (160) Location -10/Mines Parts ------- > --- POWER (1) -------- Light Ion Engine > --- PROPULSION (2) --- Light Treads > --- UTILITY (2) ------ Small Storage Unit Medium Storage Unit > --- WEAPON (2) ------- (None) > --- INVENTORY (10) --- Experimental Sensor Array Peak State ------------ > --- POWER ------------ Light Ion Engine > --- PROPULSION ------- Wheel Wheel > --- UTILITY ---------- Small Storage Unit Medium Storage Unit > --- WEAPON ----------- Light Assault Rifle Light Assault Rifle > --- INVENTORY -------- Light Ion Engine Light Ion Engine Light Treads Light Treads Wheel Experimental Sensor Array Small Laser [Rating: 8] Favorites ----------- Power Light Ion Engine Engine Light Ion Engine Propulsion Wheel Treads Light Treads Wheel Wheel Utility Small Storage Unit Storage Small Storage Unit Weapon Light Assault Rifle Energy Gun Small Laser Ballistic Gun Light Assault Rifle Build | -11 -10 -10 ------- Run | Scr Mat Min Slots Evolved . | . . . Power . | . . . Propulsion . | . . . Utility . | . . . Weapon . | . . . Parts Attached 16 | 6 . 10 Power 3 | 1 . 2 Engine 3 | 1 . 2 Core . | . . . Reactor . | . . . Propulsion 6 | 2 . 4 Treads 2 | . . 2 Leg . | . . . Wheel 4 | 2 . 2 Hover . | . . . Flight . | . . . Utility 2 | 1 . 1 Device . | . . . Storage 2 | 1 . 1 Processor . | . . . Hackware . | . . . Protection . | . . . Artifact . | . . . Weapon 5 | 2 . 3 Energy Gun 1 | . . 1 Energy Cannon . | . . . Ballistic Gun 4 | 2 . 2 Ballistic Cannon . | . . . Launcher . | . . . Special Weapon . | . . . Impact Weapon . | . . . Slashing Weapon . | . . . Piercing Weapon . | . . . Special Melee Weapon . | . . . Unidentified Prototypes . | . . . Parts Lost 12 | . . 12 Power 2 | . . 2 Propulsion 5 | . . 5 Utility . | . . . Weapon 5 | . . 5 Highest Loss Streak 7 | . . 7 Average Slot Usage (%) 93 | . 85 94 Engine 12 | . 14 12 Treads 1 | . . 1 Wheel 25 | . 28 25 Storage 26 | . 14 27 Ballistic Gun 25 | . 28 25 Naked Turns . | . . . Heaviest Build 18 | 10 10 18 Greatest Support 40 | 20 20 40 Greatest Overweight (x) 1 | . . 1 Average Overweight (x) . | . . . Largest Inventory Capacity 10 | 6 6 10 Average Capacity 9 | 4 6 9 Most Carried 8 | 4 4 8 Average Carried 5 | 2 4 6 Final Capacity 10 | 6 6 10 Final Carried 4 | 4 4 1 Class Distribution -------------------- 100% | Mutant Dominant Class ---------------- Mutant | -10/Materials Mutant | -10/Mines Resources | -11 -10 -10 ----------- Run | Scr Mat Min Matter Collected 409 | 221 . 188 Remotely . | . . . Salvage Created 270 | . . 270 Parts 21 | . . 21 Haulers Intercepted . | . . . Recyclers Shooed . | . . . Parts Field Recycled . | . . . Retrieved Matter . | . . . Parts Self-Destructed . | . . . Prevented . | . . . Kills | -11 -10 -10 ------- Run | Scr Mat Min Combat Hostiles Destroyed 11 | . . 11 Melee 1 | . . 1 Guns 10 | . . 10 Classes Destroyed 5 | . . 5 Worker 1 | . . 1 Swarmer 4 | . . 4 Grunt 4 | . . 4 Demolisher 1 | . . 1 Assembled 2 | . . 2 Best Kill Streak 3 | . . 3 Combat Bots Only 3 | . . 3 Max Kills in Single Turn 1 | . . 1 Gunslinging . | . . . Exploded . | . . . Melee 1 | . . 1 Uniques/NPCs Destroyed . | . . . Combat | -11 -10 -10 -------- Run | Scr Mat Min Damage Taken 1243 | . . 1243 Core 260 | . . 260 Absorbed by Shields . | . . . Core Remaining (%) 100 | 100 . . Volleys Fired 43 | . 1 42 Largest 2 | . 2 2 Hottest 60 | . 40 60 Shots Fired 76 | . 2 74 Gun 76 | . 2 74 Cannon . | . . . Launcher . | . . . Special . | . . . Kinetic 74 | . 2 72 Thermal 2 | . . 2 Explosive . | . . . Electromagnetic . | . . . Robot Hit Streak 12 | . 2 12 Robot Miss Streak 4 | . . 4 Penetration Max . | . . . Secondary Targets 2 | . . 2 Max Gunslinging Chain 1 | . . 1 Shots Hit Robots 50 | . 2 48 Core Hits 25 | . 1 24 Critical Hits 1 | . . 1 Critical Kills . | . . . Critical Parts Destroyed 1 | . . 1 Melee Attacks . | . . . Impact . | . . . Slashing . | . . . Piercing . | . . . Sneak Attacks . | . . . Combat Hostiles . | . . . Follow-up Attacks . | . . . Damage Inflicted 496 | . 17 479 Guns 474 | . 17 457 Cannons . | . . . Explosions . | . . . Melee . | . . . Ramming 22 | . . 22 Kinetic 462 | . 17 445 Thermal 12 | . . 12 Explosive . | . . . Electromagnetic . | . . . Impact . | . . . Slashing . | . . . Piercing . | . . . Highest Corruption . | . . . Average Corruption . | . . . Corruption Purged . | . . . Overload Shots . | . . . Overflow Damage . | . . . Projectiles . | . . . Explosions . | . . . Melee . | . . . Knockbacks . | . . . Impact . | . . . Kinetic . | . . . Secondary . | . . . Self-Inflicted Damage . | . . . Shots . | . . . Rammed 5 | . . 5 Targets Rammed 6 | . . 6 Kicked . | . . . Crushed 1 | . . 1 Highest Temperature 25 | . . 25 Average Temperature 10 | . . 10 Received Heat Transfer 183 | . . 183 Siege Activations . | . . . Robots Corrupted . | . . . Combat Hostiles . | . . . Parts Fried . | . . . Impact Corruptions . | . . . Robots Melted . | . . . Combat Hostiles . | . . . Parts Melted . | . . . Heat Transferred 25 | . . 25 Parts Sabotaged . | . . . Parts Stolen . | . . . Parts Stripped . | . . . Power Chain Reactions . | . . . Missiles Intercepted . | . . . Alert | -11 -10 -10 ------- Run | Scr Mat Min Peak Influence 140 | . 15 140 Initial 5 | . . 5 Average 48 | . 7 55 Maximum Alert Level . | . . . Low Security (%) 100 | 100 100 100 Level 1 . | . . . Level 2 . | . . . Level 3 . | . . . Level 4 . | . . . Level 5 . | . . . High Security . | . . . Max Security . | . . . Squads Dispatched . | . . . Investigation . | . . . Extermination . | . . . Reinforcement . | . . . Assault . | . . . Garrison . | . . . Intercept . | . . . Construction Impeded . | . . . Haulers Reinforced . | . . . Stealth | -11 -10 -10 --------- Run | Scr Mat Min Distress Signals . | . . . Communications Jammed . | . . . Distress Signals . | . . . Times Spotted 26 | . 1 25 Peak Tracking Total 6 | . 1 6 Tactical Retreats . | . . . Traps | -11 -10 -10 ------- Run | Scr Mat Min Traps Triggered . | . . . Indirectly . | . . . Trap Hack Attempts . | . . . Triggered . | . . . Disarmed . | . . . Reprogrammed . | . . . Reused . | . . . Traps Extracted . | . . . Installed . | . . . Triggered . | . . . Machines | -11 -10 -10 ---------- Run | Scr Mat Min Machines Disabled . | . . . Max in Single Turn . | . . . Machines Sabotaged . | . . . Garrisons Compromised . | . . . Overloaded Fab Kills . | . . . Fab Network Shutdowns . | . . . Hacking | -11 -10 -10 --------- Run | Scr Mat Min Machines Accessed . | . . . Terminals . | . . . Fabricators . | . . . Repair Stations . | . . . Recycling Units . | . . . Scanalyzers . | . . . Garrison Access . | . . . Total Hacks . | . . . Successful . | . . . Failed . | . . . Catastrophic . | . . . Database Lockouts . | . . . Manual . | . . . Terminals . | . . . Fabricators . | . . . Repair Stations . | . . . Recycling Units . | . . . Scanalyzers . | . . . Garrison Access . | . . . Terminal Hacks . | . . . Fabricator Hacks . | . . . Repair Station Hacks . | . . . Recycling Unit Hacks . | . . . Scanalyzer . | . . . Garrison Access Hacks . | . . . Unauthorized Hacks . | . . . Terminals . | . . . Fabricators . | . . . Repair Stations . | . . . Recycling Units . | . . . Scanalyzers . | . . . Garrison Access . | . . . Data Cores Recovered . | . . . Used . | . . . Hacking Detections . | . . . Full Trace Events . | . . . Feedback Events . | . . . Feedback Blocked . | . . . Robot Schematics Acquired . | . . . Robots Built . | . . . Matter . | . . . Time . | . . . Total Robot Build Rating . | . . . Part Schematics Acquired . | . . . Parts Built . | . . . Matter . | . . . Time . | . . . Total Part Build Rating . | . . . Parts Repaired . | . . . Time . | . . . Parts Recycled . | . . . Recycled Matter . | . . . Retrieved Matter . | . . . Retrieved Components . | . . . Parts Scanalyzed . | . . . Part Schematics Acquired . | . . . Parts Damaged . | . . . Bothacking | -11 -10 -10 ------------ Run | Scr Mat Min Used RIF Installer . | . . . Robots Hacked . | . . . Non-combat . | . . . Combat . | . . . Robot Hacks Applied . | . . . Relay Couplers Released . | . . . Robots Rewired . | . . . Allies Hacked . | . . . Hacks Repelled . | . . . Allies | -11 -10 -10 -------- Run | Scr Mat Min Total Allies . | . . . Largest Group . | . . . Highest-Rated Group . | . . . Highest-Rated Ally . | . . . Total Orders . | . . . Ally Attacks . | . . . Total Damage . | . . . Kills . | . . . Allies Corrupted . | . . . Allies Melted . | . . . Intel | -11 -10 -10 ------- Run | Scr Mat Min Robot Analysis Total . | . . . Derelict Logs Recovered 2 | . . 2 Drone Launches . | . . . Drone Recoveries . | . . . Exploration | -11 -10 -10 ------------- Run | Scr Mat Min Turns Passed 667 | 54 27 586 Spaces Moved 609 | 52 31 526 Core 1 | 1 . . Treads 17 | . . 17 Legs . | . . . Wheels 591 | 51 31 509 Hover . | . . . Flight . | . . . Fastest Speed 50 | 50 80 80 Average Speed 82 | 79 80 82 Slowest Speed 160 | 80 80 160 Overloaded Moves . | . . . Propulsion Burnouts . | . . . Robots Hopped . | . . . Cave-ins Triggered . | . . . Exploration Rate (%) 32 | 3 10 83 Regions Visited 2 Branch Regions 1 Pre-discovered Areas 1 | . . 1 Known Exits Taken . | . . . Unknown Exits Taken 2 | 1 1 . Scrap Searched 1 | . . 1 Spaces Dug . | . . . Terrain Destroyed . | . . . Melee . | . . . Projectile . | . . . AOE . | . . . Terrain Rammed . | . . . Walls Destroyed . | . . . Machines Disabled . | . . . Actions | -11 -10 -10 --------- Run | Scr Mat Min Total 703 | 61 31 611 Wait 21 | . . 21 Move 607 | 51 30 526 Hop . | . . . Pick Up 10 | 4 . 6 Fast Attach 7 | 6 . 1 Attach 9 | . . 9 Detach . | . . . Swap . | . . . Drop . | . . . Fire 43 | . 1 42 Melee . | . . . Ram . | . . . Kick . | . . . Crush 6 | . . 6 Escape Stasis . | . . . Rewire . | . . . Trap . | . . . Miscellaneous . | . . . Route ------- -11/Scrapyard -10/Materials -10/Mines (discovered 2 exits: [*Mat x2]) History --------- Turn | Location | Event 36 | -11/Scrapyard | Discovered new exit (range 15) 55 | -11/Scrapyard | Entered Materials 64 | -10/Materials | Discovered new exit (range 16) 82 | -10/Materials | Entered Mines 154 | -10/Mines | Discovered new exit (range 11) 205 | -10/Mines | Deemed a non-threat by the Exiles lab entrance 276 | -10/Mines | Learned location of Mines (-9) 285 | -10/Mines | Found a damaged Exp. Sensor Array with a note attached 286 | -10/Mines | Found Prototype Device 298 | -10/Mines | Discovered new exit (range 7) 306 | -10/Mines | Build established: Mutant 528 | -10/Mines | Assembled infested the area 528 | -10/Mines | Learned 2 Materials zone layouts 533 | -10/Mines | Assisted by a Guerilla fighting off Assembled 619 | -10/Mines | Core integrity fell below 50% 660 | -10/Mines | Lost 7 parts (1p2n4w) 668 | -10/Mines | Core integrity fell below 20% 668 | -10/Mines | Destroyed by as-69806 with Assembled Blade Last Messages --------------- 00612_ D-53 Grenadier destroyed. 00615_ Acquired 1 matter. 00617_ The unstable cave ceiling collapses. 00622_ K-01 Serf collects debris. 00625_ The unstable cave ceiling collapses. 00627_ K-01 Serf collects debris. 00627_ Wheel destroyed. 00627_ K-01 Serf destroyed. 00629_ Lgt. Assault Rifle destroyed. 00631_ The unstable cave ceiling collapses. 00643_ U-05 Engineer lays Concrete. 00645_ The unstable cave ceiling collapses. 00645_ Acquired 49 matter. 00648_ Acquired 2 matter. 00651_ Crushed as-70357. 00651_ as-70357 destroyed. 00652_ The unstable cave ceiling collapses. 00661_ Slammed into as-69806. 00663_ Lgt. Treads destroyed. 00663_ Slammed into as-69806. Map ----- +----------------------------------------------------+ | ????????????????????????????????????#[#????????? | | ????????????????????????????????????#%#????????? | | ????????????????????????????????????*=#????????? | | ????????????????????????????????????# #????????? | | ????????????????????????????????????# #????????? | | ???????????????????????????########## #????????? | | ??????????????????? ???????# #????????# | | ??????????????????? ???????# ###########??????# | | ??????????????????? ???????# ######## ##?##### | | ??????????????????? ??????## ## ### | | ??????????????????? ????### ### | | ??????????????????? ????# #### #?? | | ??????????????????? ???# ##### #?? | | ??????????????????# #??# #### % #### #?? | | ??????????????????# #??## ##??# = #?# ###### | | ??????????????????# #???## ##???# %%!### ### | | ??????????????????# #????###????## ## ## | | ??????????????????# #????????????# ## | | ?????????????????## #??????###??## # ##### | | ?????????????????# a######## #### # # #???? | | ?????????????????# # # #???? | | ?????????????????# % # # # # # #???? | | ?????????????????# a % % # #???? | | ?????????????????# a % #???? | | ?????????????????# a%# # # #???? | | ?????????????????##### @ ## #???? | | ?????????????????????###a## ##### #???? | | ???????????????????????###### ###### #???? | | ????????????????????????????### ## #???? | | ??#########?###???????????????## ## #???? | | ??# #??????????????### ## ######???? | | ??# """ """ #??????????????# # ## ##???????? | | ??# """ """ #??????????????# ##??????? | | ??# """ """ #??????????????# #??????? | | ??# """ """ #??????????????# #??????? | | ??# #??????????????# ##?????? | | ??# """ #?????###??????# #?????? | | ??# """ #????## ######?## ###???? | | ??# < """ #?####%* #??## #???? | | ??# """ ### == ## #???# #???? | | ??# ## = #### ##?## #### #???? | | ??## ########## ##??# ### #??# #???? | | ???# #???## ##???# %[ #??# #???? | | ???# #???# ##????## % #??# #???? | | ???# #???# ######## ! #??# #???? | | ???# #???## ##??# #???? | | ???# #????#### ###### ##???# #???? | | ???# #???????# # ##### ####????# ##????# #???? | | ???# #???????# ####???# #???????# #?????# #???? | | ???# ######### #??????# #???????# ####### #???? | +----------------------------------------------------+ Best States ------------- Heat Dissipation 25 Energy Generation 10 Energy Capacity 125 Matter Stores 300 Matter Capacity 300 Sight Range 16 Terrain Scan Density 10 Evasion (%) 44 Recoil Reduction 2 Item Schematics ----------------- None Robot Schematics ------------------ None Fabricated ------------ Nothing Alien Tech Used ----------------- None Achievements -------------- None Challenges ------------ None Game ------ Seed SingularityFocalCloak Manual? 0 Play Time 00:08:33 Cumulative 115.8 hours Start 2020.09.29 @ 19:02:14 End 2020.09.29 @ 19:06:54 Sessions 1 Manual Loads 0 Difficulty Rogue Special Mode None Game No. 145 Rogue 58 Adventurer 87 Explorer 0 Win Type - Total 4 Types 3/0/0/1/0/0/0/0/0 Lore% 52 Gallery% 64 Achievement% 55 Wizard Run 0 Options --------- ASCII 0 Keyboard 1 Movement Numpad Keybinds 0 Fullscreen 1 Font 18/Smallcaps Map View 76x50 Tactical HUD 1 Map Filters NONE Filters NONE Steam 1 RUN: 7c9f839d-1646-4a25-b906-32643d63629f